{"text_format":"2","workbook":"xlsx","n_sheets":1,"sheets":["Árazótábla"],"not_rendered":{"charts":0,"images":0,"macros":0,"external_links":0,"defined_names":0,"comments":0,"pivot_tables":0},"unopened":[],"bounds":{"document_bytes":16777216,"sheet_cells":100000,"run_cost":"one","rows_first":2000,"rows_last":500,"rows_between":2000,"halvings":0,"cell_chars":16384,"cell_head_chars":4096},"cells_cut":0,"cells_raw":0,"read":"whole","date_system":"1900"}

{"sheet":"Árazótábla","index":0,"n_rows":37,"n_cols":12,"rows_kept":37,"cut":false,"hidden":false,"merged":[[3,0,3,9],[23,0,23,9],[3,10,3,11],[1,0,1,11],[0,0,0,11],[23,10,23,11]]}
["Kérjük, hogy az ajánlati egységárait az alábbi paraméterek szerint lebontva, tételesen a táblázat kitöltésével adja meg!                                                                                                                                                                              (A táblázat az árak tekintetében képletet tartalmaz!)"]
["* -jelölt oszlopban a tervezett lehívandó mennyiségek, csak tájékoztató jellegűek!  A keretszerződéses időszak alatt ténylegesen lehívásra kerülő mennyiségek előre nem tervezhetők, ezért az Megrendelő fenntartja a jogát, hogy a kiírásban megadott tervezett mennyiségektől eltérően hívja le a termékeket. Az eltérés mértéke: kb. ± 100 %. A keretszerződés időtartama alatt, a Vállalkozó vállalja, hogy az eseti igények alapján történő lehívásoknak eleget tesz és garantálja, hogy ajánlati árát a keretszerződés egész futamideje alatt tartani képes,  A felmerülő tényleges eseti igények alapján történnek a lehívások illetve megvalósulások."]
["Típus/Teljesítmény","Készülékfajta elllenértéke","Beszerelési munkálatok átalánydíja bármelyik split készülékre nézve","Beszerelési munkálatok átalánydíja bármelyik multi készülékre nézve (1 db kül-beltéri egység között)","Szerelési ár további megkezdett méterenként (5 m fölött)","Kondenz szivattyú (cseppvíz szabadba kijuttatásához)","*Tervezett igény / db","Nettó egységár Ft/db","ÁFA (%)","Bruttó egységár Ft/db","Tervezett nettó összesen ár/ Ft","Tervezett bruttó összesen ár/ Ft"]
["Split légkondícionáló berendezések"]
["MIDEA / 2.5 kW",{"$nulls":5},20,{"$f":"SUM(B5:F5)","v":0},27,{"$f":"(H5*1.27)","v":0},{"$f":"(G5*H5)","v":0},{"$f":"(K5*1.27)","v":0}]
["MIDEA / 3.5 kW",{"$nulls":5},11,0,27,{"$f":"(H6*1.27)","v":0},0,{"$f":"(K6*1.27)","v":0}]
["MIDEA / 5.3 kW",{"$nulls":5},5,0,27,0,{"$f":"(G7*H7)","v":0},0]
["MIDEA / 7.1 kW",{"$nulls":5},7,0,27,0,{"$f":"(G8*H8)","v":0},0]
["MIDEA / 10 kW Parapet/Mennyezeti",{"$nulls":5},3,0,27,0,0,0]
["FISHER / 2.5 kW",{"$nulls":5},20,0,27,0,0,0]
["FISHER / 3.5 kW",{"$nulls":5},9,0,27,0,0,0]
["FISHER / 5.3 kW",{"$nulls":5},5,0,27,0,0,0]
["FISHER / 7.1 kW",{"$nulls":5},7,0,27,0,0,0]
["FISHER / 10 kW Parapet/Mennyezeti",{"$nulls":5},3,0,27,0,0,0]
["FUJITSU / 2.5 kW",{"$nulls":5},12,0,27,0,0,0]
["FUJITSU / 3.5 kW",{"$nulls":5},5,0,27,0,0,0]
["FUJITSU 5.3 kW",{"$nulls":5},5,0,27,0,0,0]
["FUJITSU / 7.1 kW",{"$nulls":5},3,0,27,0,0,0]
["FUJITSU / 10 kW Parapet/Mennyezeti",{"$nulls":5},2,0,27,0,0,0]
["TOSHIBA / 2.5 kW",{"$nulls":5},9,0,27,0,0,0]
["TOSHIBA / 3.5 kW",{"$nulls":5},6,0,27,0,0,0]
["TOSHIBA / 5.3 kW",{"$nulls":5},4,0,27,0,0,0]
["TOSHIBA / 7.1 kW",{"$nulls":5},3,0,27,0,0,0]
["Multi split légkondícionáló berendezések"]
["TOSHIBA / 10 kW Parapet/Mennyezeti",{"$nulls":5},2,{"$f":"SUM(B25:F25)","v":0},27,{"$f":"(H25*1.27)","v":0},{"$f":"(G25*H25)","v":0},{"$f":"(K25*1.27)","v":0}]
["MIDEA / ~5.3 kW 2 beltéri, 1 kültéri egység",{"$nulls":5},7,{"$f":"SUM(B26:F26)","v":0},27,{"$f":"(H26*1.27)","v":0},{"$f":"(G26*H26)","v":0},{"$f":"(K26*1.27)","v":0}]
["MIDEA / ~7.1 kW 2 beltéri, 1 kültéri egység",{"$nulls":5},5,0,27,0,0,0]
["MIDEA / ~ 7.9 kW 3 beltéri, 1 kültéri egység",{"$nulls":5},3,0,27,0,0,0]
["FISHER / ~5.3 kW 2 beltéri, 1 kültéri egység",{"$nulls":5},7,0,27,0,0,0]
["FISHER / ~7.1 kW 2 beltéri, 1 kültéri egység",{"$nulls":5},3,0,27,0,0,0]
["FISHER / ~ 7.9 kW 3 beltéri, 1 kültéri egység",{"$nulls":5},5,0,27,0,0,0]
["FUJITSU / ~5.3 kW 2 beltéri, 1 kültéri egység",{"$nulls":5},6,0,27,0,0,0]
["FUJITSU / ~7.1 kW 2 beltéri, 1 kültéri egység",{"$nulls":5},3,0,27,0,0,0]
["FUJITSU / ~ 7.9 kW 3 beltéri, 1 kültéri egység",{"$nulls":5},3,0,27,0,0,0]
["FISHER  Kazettás/ ~ 14 kW 1 beltéri, 1 kültéri egység",{"$nulls":5},5,0,27,{"$f":"(H35*1.27)","v":0},{"$f":"(G35*H35)","v":0},{"$f":"(K35*1.27)","v":0}]
[{"$nulls":5},"Nettó összesen:",null,{"$f":"SUM(H25:H35,H5:H23)","v":0},null,null,{"$f":"SUM(K25:K35,K5:K23)","v":0}]
[{"$nulls":5},"Bruttó összesen:",null,null,null,{"$f":"SUM(J5:J23,J25:J35)","v":0},null,{"$f":"SUM(L5:L23,L25:L35)","v":0}]